bitfinex-derivatives/quotes_BTCF0:USTF0_20260221
["timestamp","ask_amount","ask_price","bid_price","bid_amount"]
[1771674388793,0.014682,68131.0,68110.0,0.014686]
[1771674388999,0.029366,68123.0,68114.0,0.014685]
[1771674389197,0.014683,68123.0,68115.0,0.014685]
[1771674389800,0.014683,68123.0,68114.0,0.014685]
[1771674390392,0.014684,68122.0,68113.0,0.014685]
[1771674390699,0.014683,68123.0,68113.0,0.02937]
[1771674390897,0.014683,68124.0,68113.0,0.014685]
[1771674391404,0.014683,68123.0,68113.0,0.014685]
[1771674391797,0.014684,68122.0,68113.0,0.014685]
[1771674393806,0.14590725,68125.0,68116.0,0.014685]
[1771674393995,0.16059025,68125.0,68113.0,0.014685]
[1771674394200,0.16059025,68125.0,68115.0,0.014685]
[1771674394402,0.014683,68124.0,68115.0,0.014685]
[1771674395412,0.14590725,68125.0,68116.0,0.014685]
[1771674397415,0.14590725,68125.0,68119.0,0.014684]
[1771674398111,0.14590725,68125.0,68115.0,0.014685]
[1771674398312,0.14590725,68125.0,68116.0,0.014685]
[1771674398806,0.14590725,68125.0,68117.0,0.014684]
[1771674404315,0.14590725,68125.0,68116.0,0.014685]
[1771674406321,0.14590725,68124.0,68116.0,0.014685]
[1771674407120,0.14590725,68124.0,68115.0,0.014685]
[1771674408319,0.14590725,68123.0,68115.0,0.014685]
[1771674408519,0.14590725,68123.0,68116.0,0.014685]
[1771674409122,0.14590725,68122.0,68116.0,0.014685]
[1771674410115,0.14590725,68121.0,68116.0,0.014685]
[1771674411222,0.14590725,68121.0,68111.0,0.014686]
[1771674411623,0.14590725,68121.0,68116.0,0.014685]
[1771674412422,0.014683,68125.0,68116.0,0.014685]
[1771674422228,0.014683,68126.0,68116.0,0.02937]
[1771674422829,0.014683,68126.0,68116.0,0.014685]
[1771674423025,0.014683,68126.0,68120.0,0.00092]
[1771674423230,0.014682,68128.0,68119.0,0.014684]
[1771674423821,0.014682,68128.0,68118.0,0.014684]
[1771674426131,0.014682,68127.0,68118.0,0.014684]
[1771674427235,0.029365,68127.0,68117.0,0.014684]
[1771674427434,0.014682,68127.0,68117.0,0.029368]
[1771674427737,0.014682,68127.0,68117.0,0.014684]
[1771674427932,0.014682,68127.0,68118.0,0.014684]
[1771674428134,0.014682,68127.0,68116.0,0.014685]
[1771674428327,0.014683,68126.0,68116.0,0.014685]
[1771674428721,0.014683,68126.0,68117.0,0.014684]
[1771674432044,0.014683,68126.0,68120.0,0.0008]
[1771674432245,0.014683,68126.0,68117.0,0.014684]
[1771674436348,0.014682,68131.0,68122.0,0.014683]
[1771674437753,0.014681,68132.0,68122.0,0.014683]
[1771674438049,0.029362,68132.0,68123.0,0.014683]
[1771674438648,0.014681,68132.0,68123.0,0.014683]
[1771674439146,0.014681,68132.0,68122.0,0.014683]
[1771674439352,0.014682,68129.0,68121.0,0.014684]
[1771674441256,0.014682,68129.0,68120.0,0.014684]
[1771674444058,0.014682,68129.0,68123.0,0.00092]
[1771674444361,0.014682,68129.0,68120.0,0.014684]
[1771674444748,0.014682,68129.0,68119.0,0.014684]
[1771674446157,0.014682,68128.0,68119.0,0.014684]
[1771674446456,0.014683,68126.0,68116.0,0.014685]
[1771674446653,0.014683,68127.0,68117.0,0.014684]
[1771674446850,0.014683,68126.0,68117.0,0.014684]
[1771674447251,0.014682,68128.0,68118.0,0.014684]
[1771674447956,0.19407877,68130.0,68120.0,0.014684]
[1771674448354,0.014682,68129.0,68120.0,0.014684]
[1771674450454,0.014682,68129.0,68115.0,0.014685]
[1771674450656,0.014683,68126.0,68116.0,0.014685]
[1771674451556,0.014683,68126.0,68117.0,0.014685]
[1771674452859,0.19407877,68130.0,68120.0,0.014684]
[1771674453060,0.014682,68129.0,68124.0,0.00092]
[1771674453266,0.014682,68129.0,68120.0,0.014684]
[1771674455064,0.17939677,68130.0,68117.0,0.014684]
[1771674455263,0.014683,68127.0,68117.0,0.014684]
[1771674456362,0.014683,68126.0,68117.0,0.014684]
[1771674458053,0.014682,68127.0,68117.0,0.014684]
[1771674460964,0.014682,68127.0,68117.0,0.029368]
[1771674463275,0.014682,68127.0,68118.0,0.014684]
[1771674463861,0.014682,68131.0,68119.0,0.014684]
[1771674464062,0.17939677,68130.0,68121.0,0.014683]
[1771674467070,0.01468,68140.0,68117.0,0.20637439]
[1771674467272,0.01468,68140.0,68130.0,0.014682]
[1771674467573,0.17939677,68140.0,68130.0,0.014682]
[1771674467759,0.17939677,68140.0,68133.0,0.014681]
[1771674467959,0.17939677,68143.0,68133.0,0.014681]
[1771674468164,0.19407577,68143.0,68131.0,0.014681]
[1771674468368,0.014679,68142.0,68131.0,0.014681]
[1771674468567,0.014679,68142.0,68132.0,0.014681]
[1771674470771,0.014679,68144.0,68133.0,0.014681]
[1771674470962,0.029358,68144.0,68130.0,0.17939677]
[1771674471170,0.014679,68144.0,68133.0,0.014681]
[1771674471564,0.014679,68144.0,68134.0,0.014681]
[1771674472071,0.014679,68144.0,68135.0,0.014681]
[1771674472767,0.014679,68145.0,68135.0,0.014681]
[1771674473370,0.014679,68144.0,68135.0,0.014681]
[1771674473977,0.014679,68145.0,68135.0,0.014681]
[1771674474168,0.014678,68146.0,68136.0,0.01468]
[1771674474369,0.014679,68145.0,68136.0,0.01468]
[1771674474572,0.014679,68145.0,68135.0,0.014681]
[1771674475179,0.014679,68145.0,68136.0,0.01468]
[1771674475772,0.014679,68145.0,68137.0,0.01468]
[1771674476577,0.014678,68146.0,68137.0,0.01468]
[1771674477079,0.014678,68146.0,68137.0,0.02936]
[1771674477279,0.014678,68146.0,68138.0,0.01468]
[1771674477875,0.014678,68146.0,68137.0,0.01468]
[1771674477876,0.19407377,68150.0,68130.0,0.17939677]
[1771674478074,0.17939677,68150.0,68140.0,0.014679]
[1771674478375,0.19407477,68150.0,68139.0,0.01468]
[1771674478681,0.014678,68147.0,68139.0,0.01468]
[1771674479065,0.014678,68148.0,68139.0,0.01468]
[1771674479272,0.029356,68149.0,68140.0,0.01468]
[1771674479474,0.014678,68147.0,68139.0,0.01468]
[1771674479674,0.014678,68148.0,68140.0,0.01468]
[1771674479874,0.014678,68147.0,68139.0,0.01468]
[1771674480075,0.014678,68149.0,68141.0,0.014679]
[1771674480476,0.17939677,68150.0,68130.0,0.17939677]
[1771674480777,0.014677,68154.0,68144.0,0.014679]
[1771674480971,0.014677,68154.0,68141.0,0.014679]
[1771674480972,0.20588167,68155.0,68147.0,0.014678]
[1771674481171,0.014676,68158.0,68146.0,0.014678]
[1771674481373,0.014676,68156.0,68147.0,0.014678]
[1771674481680,0.014676,68156.0,68143.0,0.014679]
[1771674481681,0.014676,68157.0,68148.0,0.029356]
[1771674481865,0.014676,68157.0,68148.0,0.014678]
[1771674482068,0.20588167,68159.0,68127.0,0.0136]
[1771674482270,0.014679,68145.0,68132.0,0.014681]
[1771674482475,0.014678,68146.0,68137.0,0.01468]
[1771674482681,0.014679,68145.0,68136.0,0.01468]
[1771674483272,0.014678,68146.0,68136.0,0.01468]
[1771674484777,0.014678,68147.0,68137.0,0.01468]
[1771674485982,0.014678,68149.0,68138.0,0.01468]
[1771674487279,0.014678,68149.0,68139.0,0.01468]
[1771674488571,0.014678,68149.0,68140.0,0.01468]
[1771674489085,0.014678,68149.0,68143.0,0.00088]
[1771674489286,0.014678,68149.0,68140.0,0.01468]
[1771674491184,0.014678,68149.0,68138.0,0.01468]
[1771674491488,0.014678,68148.0,68138.0,0.01468]
[1771674491682,0.014678,68147.0,68138.0,0.01468]
[1771674492789,0.014678,68147.0,68138.0,0.02936]
[1771674492976,0.014678,68148.0,68139.0,0.01468]
[1771674493884,0.014678,68148.0,68129.0,0.16941741]
[1771674493885,0.20594076,68144.0,68122.0,0.44035022]
[1771674494089,0.01468,68139.0,68130.0,0.014682]
[1771674494291,0.01468,68138.0,68130.0,0.014682]
[1771674494592,0.01468,68138.0,68127.0,0.014682]
[1771674494593,0.01468,68140.0,68131.0,0.014681]
[1771674494889,0.01468,68139.0,68131.0,0.014681]
[1771674497993,0.01468,68139.0,68130.0,0.014682]
[1771674499495,0.01468,68138.0,68129.0,0.014682]
[1771674501592,0.01468,68139.0,68130.0,0.014682]
[1771674505396,0.01468,68139.0,68129.0,0.014682]
[1771674506305,0.01468,68139.0,68130.0,0.014682]
[1771674508006,0.014679,68141.0,68132.0,0.014681]
[1771674511818,0.014679,68141.0,68132.0,0.029362]
[1771674513324,0.014679,68141.0,68132.0,0.014681]
[1771674513619,0.01468,68138.0,68129.0,0.014682]
[1771674514409,0.01468,68137.0,68129.0,0.014682]
[1771674514621,0.01468,68137.0,68128.0,0.014682]
[1771674514822,0.014681,68136.0,68127.0,0.014682]
[1771674515017,0.014681,68133.0,68123.0,0.014683]
[1771674515316,0.014681,68133.0,68124.0,0.014683]
[1771674515911,0.014681,68133.0,68125.0,0.014683]
[1771674516314,0.014681,68133.0,68124.0,0.014683]
[1771674517014,0.01468,68138.0,68118.0,0.46992]
[1771674517015,0.05746031,68131.0,68118.0,0.46992]
[1771674517210,0.014682,68129.0,68121.0,0.014684]
[1771674519412,0.029364,68129.0,68121.0,0.014684]
[1771674519618,0.014682,68129.0,68121.0,0.014684]
[1771674520121,0.014682,68128.0,68121.0,0.014684]
[1771674521206,0.014683,68126.0,68118.0,0.484604]
[1771674521408,0.014682,68127.0,68118.0,0.42334062]
[1771674521707,0.014682,68127.0,68118.0,0.06526486]
[1771674521920,0.014683,68125.0,68118.0,0.05058086]
[1771674522120,0.014683,68125.0,68117.0,0.014684]
[1771674522820,0.014683,68125.0,68115.0,0.014685]
[1771674523018,0.014684,68120.0,68109.0,0.014686]
[1771674523224,0.014684,68121.0,68113.0,0.014685]
[1771674524015,0.014684,68121.0,68113.0,0.02937]
[1771674524213,0.014683,68122.0,68114.0,0.014685]
[1771674525316,0.014684,68121.0,68112.0,0.014686]
[1771674525515,0.014684,68121.0,68112.0,0.029371]
[1771674525725,0.014683,68122.0,68114.0,0.014685]
[1771674525925,0.014683,68124.0,68114.0,0.014685]
[1771674526221,0.014683,68124.0,68115.0,0.014685]
[1771674526420,0.014683,68124.0,68116.0,0.014685]
[1771674526825,0.014683,68125.0,68117.0,0.014685]
[1771674527323,0.014683,68125.0,68118.0,0.014684]
[1771674527626,0.029366,68125.0,68117.0,0.014684]
[1771674527826,0.014683,68124.0,68117.0,0.014684]
[1771674529218,0.014683,68125.0,68118.0,0.014684]
[1771674529720,0.014683,68124.0,68118.0,0.014684]
[1771674529924,0.014683,68124.0,68117.0,0.014684]
[1771674530938,0.014683,68123.0,68116.0,0.014685]
[1771674531431,0.014685,68116.0,68108.0,0.014686]
[1771674531631,0.014685,68117.0,68110.0,0.014686]
[1771674531931,0.014684,68118.0,68108.0,0.014686]
[1771674532131,0.014685,68117.0,68109.0,0.014686]
[1771674532327,0.014684,68118.0,68110.0,0.014686]
[1771674532528,0.014684,68119.0,68111.0,0.014686]
[1771674532726,0.014684,68121.0,68112.0,0.014686]
[1771674532727,0.014684,68120.0,68112.0,0.014686]
[1771674533430,0.014684,68119.0,68111.0,0.014686]
[1771674534432,0.029368,68119.0,68111.0,0.014686]
[1771674534635,0.014684,68119.0,68111.0,0.014686]
[1771674534828,0.029368,68119.0,68111.0,0.014686]
[1771674535226,0.014684,68119.0,68111.0,0.014686]
[1771674536230,0.014684,68119.0,68110.0,0.014686]
[1771674537329,0.014684,68118.0,68110.0,0.014686]
[1771674538833,0.014684,68119.0,68107.0,0.014687]
[1771674538834,0.014684,68119.0,68109.0,0.014686]
[1771674539138,0.014684,68120.0,68109.0,0.014686]
[1771674540234,0.014684,68120.0,68111.0,0.014686]
[1771674541232,0.014684,68121.0,68112.0,0.014685]
[1771674541735,0.014684,68121.0,68113.0,0.014685]
[1771674542934,0.014684,68121.0,68109.0,0.014686]
[1771674542935,0.014683,68125.0,68118.0,0.014684]
[1771674543134,0.014683,68127.0,68118.0,0.014684]
[1771674543325,0.05746031,68140.0,68122.0,0.014683]
[1771674543326,0.014682,68131.0,68122.0,0.014683]
[1771674543635,0.014681,68134.0,68125.0,0.014683]
[1771674543829,0.01468,68138.0,68127.0,0.014682]
[1771674543830,0.014681,68136.0,68127.0,0.014682]
[1771674544029,0.014681,68134.0,68127.0,0.014682]
[1771674544234,0.014681,68134.0,68128.0,0.014682]
[1771674544435,0.014681,68135.0,68129.0,0.014682]
[1771674544635,0.014681,68134.0,68129.0,0.014682]
[1771674545236,0.01468,68136.0,68130.0,0.014682]
[1771674545531,0.01468,68137.0,68132.0,0.014681]
[1771674545735,0.01468,68136.0,68131.0,0.014681]
[1771674545930,0.014681,68135.0,68130.0,0.014682]
[1771674547242,0.01468,68136.0,68131.0,0.014681]
[1771674547436,0.01468,68139.0,68125.0,0.014683]
[1771674547732,0.01468,68138.0,68133.0,0.014681]
[1771674547938,0.001,68135.0,68133.0,0.014681]
[1771674548338,0.01468,68136.0,68126.0,0.014683]
[1771674548538,0.014681,68133.0,68123.0,0.014683]
[1771674548841,0.014681,68133.0,68122.0,0.20677426]
[1771674549025,0.014681,68132.0,68127.0,0.00084]
[1771674549226,0.014682,68130.0,68122.0,0.20677426]
[1771674549637,0.014682,68130.0,68122.0,0.19209126]
[1771674551338,0.014683,68124.0,68115.0,0.21654715]
[1771674551535,0.014683,68123.0,68115.0,0.21654715]
[1771674551831,0.014683,68123.0,68115.0,0.34864898]
[1771674553142,0.014682,68127.0,68115.0,0.34864898]
[1771674553944,0.014682,68127.0,68117.0,0.17935711]
[1771674554544,0.014683,68123.0,68117.0,0.17935711]
[1771674554840,0.014683,68125.0,68115.0,0.20186215]
[1771674555044,0.014683,68124.0,68121.0,0.00092]
[1771674555244,0.014683,68124.0,68115.0,0.20186215]
[1771674556245,0.014682,68130.0,68115.0,0.20186215]
[1771674557047,0.014682,68130.0,68120.0,0.17935711]
[1771674558047,0.014682,68130.0,68121.0,0.00092]
[1771674558352,0.014682,68130.0,68120.0,0.17935711]
[1771674559247,0.014682,68130.0,68121.0,0.014684]
[1771674559749,0.014682,68130.0,68122.0,0.014683]
[1771674560248,0.014682,68130.0,68123.0,0.014683]
[1771674561051,0.014682,68130.0,68124.0,0.00092]
[1771674561249,0.014682,68130.0,68122.0,0.014683]
[1771674562250,0.014682,68129.0,68122.0,0.014683]
[1771674564954,0.014682,68128.0,68122.0,0.014683]
[1771674565756,0.014682,68128.0,68121.0,0.014684]
[1771674568054,0.014682,68128.0,68118.0,0.014684]
[1771674569150,0.014682,68128.0,68117.0,0.014684]
[1771674569351,0.014683,68126.0,68117.0,0.014684]
[1771674570058,0.014683,68126.0,68120.0,0.00092]
[1771674570251,0.014683,68125.0,68117.0,0.014684]
[1771674571158,0.014683,68125.0,68116.0,0.014685]
[1771674571353,0.014683,68126.0,68116.0,0.014685]
[1771674572249,0.014683,68126.0,68118.0,0.014684]
[1771674572753,0.014683,68126.0,68115.0,0.21654715]
[1771674572950,0.014683,68125.0,68117.0,0.014685]
[1771674573351,0.014682,68127.0,68118.0,0.014684]
[1771674576055,0.014682,68127.0,68121.0,0.00088]
[1771674576245,0.014682,68127.0,68118.0,0.014684]
[1771674576246,0.014682,68127.0,68119.0,0.014684]
[1771674578258,0.014682,68128.0,68119.0,0.014684]
[1771674578553,0.014682,68128.0,68119.0,0.029368]
[1771674578758,0.014682,68128.0,68120.0,0.014684]
[1771674581462,0.014682,68127.0,68119.0,0.014684]
[1771674581660,0.014683,68126.0,68118.0,0.014684]
[1771674582762,0.014682,68127.0,68118.0,0.014684]
[1771674583358,0.014683,68126.0,68118.0,0.014684]
[1771674583558,0.014682,68127.0,68118.0,0.014684]
[1771674584063,0.014682,68127.0,68119.0,0.014684]
[1771674584959,0.014682,68127.0,68110.0,0.17935711]
[1771674584960,0.014685,68116.0,68108.0,0.014686]
[1771674585150,0.014685,68117.0,68107.0,0.014687]
[1771674585356,0.014685,68117.0,68108.0,0.014686]
[1771674585557,0.014685,68116.0,68107.0,0.014687]
[1771674585860,0.014685,68117.0,68106.0,0.40147926]
[1771674585861,0.02937,68117.0,68108.0,0.014686]
[1771674586070,0.014685,68116.0,68108.0,0.014686]
[1771674586268,0.014685,68116.0,68107.0,0.014687]
[1771674587562,0.014685,68115.0,68107.0,0.014687]
[1771674587762,0.014685,68115.0,68106.0,0.40147926]
[1771674587963,0.014685,68115.0,68107.0,0.014687]
[1771674588356,0.014685,68115.0,68106.0,0.22212215]
[1771674588563,0.014685,68114.0,68106.0,0.20743515]
[1771674588964,0.014685,68113.0,68103.0,0.02239477]
[1771674589462,0.014685,68113.0,68105.0,0.014687]
[1771674589662,0.014685,68113.0,68104.0,0.014687]
[1771674590168,0.014685,68113.0,68104.0,0.029374]
[1771674590568,0.014685,68113.0,68105.0,0.014687]
[1771674590768,0.014685,68114.0,68105.0,0.014687]
[1771674591366,0.014685,68115.0,68106.0,0.014687]
[1771674592265,0.014685,68115.0,68107.0,0.014687]
[1771674593567,0.014685,68116.0,68107.0,0.014687]
[1771674594369,0.014685,68116.0,68107.0,0.029374]
[1771674594675,0.014685,68116.0,68108.0,0.014686]
[1771674596273,0.014685,68117.0,68108.0,0.014686]
[1771674597573,0.014685,68116.0,68108.0,0.014686]
[1771674598375,0.014685,68116.0,68107.0,0.014687]
[1771674598577,0.014683,68126.0,68103.0,0.00770777]
[1771674598578,0.17935711,68120.0,68103.0,0.00770777]
[1771674598777,0.014685,68114.0,68104.0,0.014687]
[1771674599376,0.014685,68113.0,68104.0,0.014687]
[1771674599877,0.014686,68112.0,68104.0,0.014687]
[1771674600270,0.014686,68112.0,68103.0,0.00770777]
[1771674600470,0.014686,68112.0,68103.0,0.02239477]
[1771674600670,0.014686,68112.0,68104.0,0.014687]
[1771674600869,0.014685,68113.0,68104.0,0.014687]
[1771674601682,0.014686,68112.0,68103.0,0.02239577]
[1771674602576,0.014685,68116.0,68105.0,0.014687]
[1771674602775,0.014684,68120.0,68107.0,0.014687]
[1771674602975,0.014684,68120.0,68110.0,0.17935711]
[1771674603282,0.014685,68115.0,68110.0,0.17935711]
[1771674603577,0.014685,68115.0,68107.0,0.014687]
[1771674603770,0.014685,68115.0,68106.0,0.014687]
[1771674605079,0.014685,68115.0,68105.0,0.19404411]
[1771674605080,0.014684,68122.0,68112.0,0.014686]
[1771674605274,0.014684,68121.0,68112.0,0.014685]
[1771674605483,0.014684,68120.0,68112.0,0.014685]
[1771674605680,0.014684,68120.0,68112.0,0.02937]
[1771674605879,0.014684,68120.0,68112.0,0.014685]
[1771674606479,0.014684,68119.0,68111.0,0.014686]
[1771674607987,0.014684,68119.0,68112.0,0.014686]
[1771674609482,0.014684,68118.0,68110.0,0.014686]
[1771674609682,0.014684,68118.0,68110.0,0.029372]
[1771674610178,0.014684,68118.0,68110.0,0.014686]
[1771674611788,0.014684,68118.0,68109.0,0.014686]
[1771674614186,0.014685,68117.0,68109.0,0.014686]
[1771674614379,0.014685,68117.0,68108.0,0.014686]
[1771674617488,0.014684,68119.0,68108.0,0.014686]
[1771674618283,0.014684,68119.0,68110.0,0.014686]
[1771674619791,0.014684,68119.0,68109.0,0.014686]
[1771674620289,0.014684,68119.0,68110.0,0.014686]
[1771674621388,0.014684,68119.0,68111.0,0.014686]
[1771674621892,0.014684,68118.0,68109.0,0.014686]
[1771674622891,0.014684,68118.0,68110.0,0.014686]
[1771674624992,0.014684,68120.0,68109.0,0.014686]
[1771674625195,0.014684,68118.0,68110.0,0.014686]
[1771674625396,0.014684,68119.0,68111.0,0.014686]
[1771674626399,0.014684,68121.0,68111.0,0.014686]
[1771674626591,0.014684,68120.0,68112.0,0.014685]
[1771674627693,0.014684,68121.0,68113.0,0.014685]
[1771674627895,0.014684,68120.0,68112.0,0.014686]
[1771674629311,0.014684,68121.0,68111.0,0.014686]
[1771674629312,0.014684,68119.0,68111.0,0.014686]
[1771674630309,0.05750605,68140.0,68116.0,0.014685]
[1771674630310,0.014683,68125.0,68116.0,0.014685]
[1771674630505,0.014683,68124.0,68116.0,0.014685]
[1771674632318,0.014683,68123.0,68116.0,0.014685]
[1771674633310,0.014683,68122.0,68115.0,0.014685]
[1771674633511,0.014683,68123.0,68115.0,0.014685]
[1771674635315,0.014684,68122.0,68115.0,0.014685]
[1771674635817,0.014684,68122.0,68114.0,0.014685]
[1771674639220,0.014684,68121.0,68113.0,0.014685]
[1771674640219,0.014683,68123.0,68114.0,0.014685]
[1771674640409,0.014683,68122.0,68114.0,0.014685]
[1771674641312,0.014684,68122.0,68114.0,0.014685]
[1771674644017,0.014682,68129.0,68110.0,0.24619043]
[1771674644018,0.014682,68129.0,68116.0,0.014685]
[1771674644217,0.014683,68126.0,68117.0,0.014684]
[1771674644413,0.014683,68125.0,68118.0,0.014684]
[1771674646122,0.014683,68125.0,68119.0,0.014684]
[1771674646331,0.029366,68125.0,68119.0,0.014684]
[1771674647025,0.014683,68124.0,68119.0,0.014684]
[1771674648320,0.014683,68125.0,68119.0,0.014684]
[1771674648521,0.014682,68127.0,68120.0,0.014684]
[1771674648726,0.014683,68126.0,68120.0,0.014684]
[1771674649122,0.014682,68130.0,68119.0,0.014684]
[1771674649329,0.014682,68130.0,68116.0,0.05750605]
[1771674649330,0.014682,68129.0,68123.0,0.014683]
[1771674650024,0.014682,68129.0,68122.0,0.014683]
[1771674650219,0.014682,68129.0,68121.0,0.014684]
[1771674650423,0.014682,68129.0,68123.0,0.014683]
[1771674650622,0.014682,68131.0,68123.0,0.014683]
[1771674650822,0.014682,68130.0,68123.0,0.014683]
[1771674651327,0.014682,68130.0,68120.0,0.014684]
[1771674651529,0.014682,68131.0,68120.0,0.03714413]
[1771674651736,0.014683,68127.0,68120.0,0.05750605]
[1771674652034,0.014683,68127.0,68119.0,0.23666975]
[1771674652331,0.014682,68129.0,68119.0,0.23666975]
[1771674652630,0.014683,68127.0,68119.0,0.23666975]
[1771674653025,0.014682,68130.0,68119.0,0.23666975]
[1771674653233,0.014683,68127.0,68119.0,0.23666975]
[1771674653931,0.014682,68131.0,68122.0,0.014683]
[1771674654125,0.014681,68134.0,68122.0,0.21401038]
[1771674654433,0.014681,68132.0,68122.0,0.21401038]
[1771674654634,0.014682,68131.0,68122.0,0.21401038]
[1771674654830,0.014681,68132.0,68122.0,0.21401038]
[1771674655031,0.014682,68131.0,68122.0,0.21401038]
[1771674655333,0.014681,68134.0,68122.0,0.21401038]
[1771674655522,0.01468,68137.0,68126.0,0.014683]
[1771674655728,0.014681,68135.0,68126.0,0.014683]
[1771674657225,0.01468,68137.0,68127.0,0.014682]
[1771674657827,0.01468,68137.0,68128.0,0.014682]
[1771674658619,0.01468,68141.0,68132.0,0.014681]
[1771674659031,0.01468,68140.0,68132.0,0.014681]
[1771674659232,0.014681,68135.0,68127.0,0.014682]
[1771674659438,0.014681,68135.0,68126.0,0.014682]
[1771674659439,0.01468,68136.0,68128.0,0.014682]
[1771674659827,0.01468,68140.0,68128.0,0.014682]
[1771674660026,0.01468,68139.0,68130.0,0.029364]
[1771674661227,0.01468,68138.0,68130.0,0.014682]
[1771674662637,0.014681,68135.0,68127.0,0.014682]
[1771674664638,0.01468,68136.0,68127.0,0.014682]
[1771674664837,0.01468,68136.0,68128.0,0.014682]
[1771674665035,0.01468,68137.0,68128.0,0.014682]
[1771674666037,0.01468,68138.0,68131.0,0.00092]
[1771674666242,0.01468,68138.0,68130.0,0.014682]
[1771674669043,0.01468,68138.0,68131.0,0.014682]
[1771674669747,0.01468,68140.0,68131.0,0.014682]
[1771674669937,0.01468,68139.0,68131.0,0.014682]
[1771674670544,0.01468,68139.0,68131.0,0.029363]
[1771674671044,0.014679,68143.0,68135.0,0.01468]
[1771674671446,0.014679,68142.0,68136.0,0.01468]
[1771674673154,0.029358,68142.0,68136.0,0.01468]
[1771674673350,0.014679,68141.0,68134.0,0.014681]
[1771674673649,0.014679,68141.0,68134.0,0.029362]
[1771674674953,0.014679,68141.0,68135.0,0.014681]
[1771674676254,0.01468,68138.0,68132.0,0.014681]
[1771674679058,0.01468,68138.0,68131.0,0.014681]
[1771674679250,0.01468,68136.0,68130.0,0.23002945]
[1771674680561,0.01468,68136.0,68130.0,0.21534745]
[1771674681062,0.01468,68136.0,68130.0,0.21626745]
[1771674681365,0.01468,68137.0,68130.0,0.23002945]
[1771674681754,0.01468,68139.0,68130.0,0.23002945]
[1771674682565,0.01468,68137.0,68130.0,0.23002945]
[1771674684050,0.01468,68137.0,68131.0,0.0008]
[1771674684249,0.01468,68137.0,68130.0,0.0507043]
[1771674686764,0.01468,68139.0,68130.0,0.0507043]
[1771674687363,0.01468,68139.0,68130.0,0.0360223]
[1771674687663,0.01468,68139.0,68129.0,0.014682]
[1771674688052,0.01468,68139.0,68129.0,0.05144682]
[1771674688254,0.01468,68139.0,68131.0,0.014681]
[1771674689052,0.01468,68139.0,68132.0,0.014681]
[1771674690467,0.01468,68140.0,68132.0,0.014681]
[1771674691270,0.01468,68140.0,68133.0,0.014681]
[1771674691776,0.01468,68140.0,68134.0,0.014681]
[1771674693274,0.01468,68139.0,68132.0,0.014681]
[1771674694372,0.01468,68139.0,68133.0,0.014681]
[1771674696167,0.01468,68139.0,68132.0,0.014681]
[1771674696370,0.01468,68137.0,68130.0,0.014682]
[1771674696666,0.01468,68137.0,68129.0,0.03676482]
[1771674696867,0.01468,68137.0,68128.0,0.014682]
[1771674697071,0.01468,68136.0,68128.0,0.03609737]
[1771674697266,0.014681,68134.0,68126.0,0.014682]
[1771674697472,0.014681,68135.0,68127.0,0.014682]
[1771674698168,0.01468,68137.0,68129.0,0.014682]
[1771674698374,0.01468,68138.0,68129.0,0.014682]
[1771674699573,0.02936,68138.0,68129.0,0.014682]
[1771674699764,0.01468,68137.0,68128.0,0.17932515]
[1771674699966,0.01468,68137.0,68128.0,0.19400715]
[1771674700370,0.01468,68136.0,68128.0,0.19400715]
[1771674701582,0.014681,68135.0,68128.0,0.17932515]
[1771674701970,0.01468,68136.0,68128.0,0.19400715]
[1771674703581,0.01468,68136.0,68128.0,0.014682]
[1771674705385,0.01468,68138.0,68130.0,0.014682]
[1771674708591,0.014682,68130.0,68108.0,0.014686]
[1771674708778,0.014683,68122.0,68114.0,0.014685]
[1771674709089,0.014683,68122.0,68113.0,0.014685]
[1771674709878,0.014684,68121.0,68113.0,0.014685]
[1771674712379,0.014684,68120.0,68111.0,0.014686]
[1771674712688,0.014684,68120.0,68111.0,0.029372]
[1771674713687,0.014684,68120.0,68112.0,0.014686]
[1771674716182,0.014684,68120.0,68110.0,0.19401115]
[1771674716790,0.014684,68119.0,68110.0,0.19401115]
[1771674716992,0.014684,68120.0,68110.0,0.19401115]
[1771674717288,0.014684,68120.0,68111.0,0.014686]
[1771674722689,0.014684,68120.0,68112.0,0.014686]
[1771674722889,0.014684,68120.0,68111.0,0.014686]
[1771674724786,0.014684,68120.0,68112.0,0.014686]
[1771674725985,0.014685,68117.0,68110.0,0.17932515]
[1771674726181,0.014685,68117.0,68109.0,0.014686]
[1771674726878,0.014685,68117.0,68109.0,0.029372]
[1771674727692,0.014685,68117.0,68109.0,0.014686]
[1771674728079,0.014684,68118.0,68109.0,0.029372]
[1771674728485,0.014684,68118.0,68109.0,0.014686]
[1771674730693,0.014684,68118.0,68109.0,0.029372]
[1771674731083,0.014684,68118.0,68110.0,0.014686]
[1771674731289,0.014684,68121.0,68112.0,0.014685]
[1771674731589,0.014683,68124.0,68115.0,0.014685]
[1771674731989,0.014683,68123.0,68115.0,0.014685]
[1771674732893,0.014682,68131.0,68118.0,0.014684]
[1771674733095,0.014679,68144.0,68123.0,0.014683]
[1771674733287,0.23483185,68143.0,68123.0,0.014683]
[1771674733486,0.014682,68130.0,68123.0,0.014683]
[1771674733692,0.014682,68129.0,68122.0,0.014683]
[1771674734197,0.014682,68129.0,68119.0,0.014684]
[1771674734198,0.014682,68128.0,68120.0,0.014684]
[1771674734496,0.014682,68127.0,68120.0,0.014684]
[1771674734698,0.014682,68127.0,68121.0,0.014684]
[1771674735399,0.014682,68129.0,68122.0,0.014683]
[1771674735892,0.014682,68129.0,68121.0,0.014684]
[1771674735893,0.014682,68129.0,68123.0,0.014683]